bitfinex/quotes_ETHUSD_20220212
["timestamp","ask_amount","ask_price","bid_price","bid_amount"]
[1644651401281,7.898e-05,2911.7,2911.6,5.75029072]
[1644651401581,7.898e-05,2911.7,2911.6,9.99772464]
[1644651401780,0.1716,2913.0,2911.8,3.3]
[1644651401982,1.29797015,2913.1,2912.3,5.0]
[1644651402180,0.1724,2913.4,2912.4,1.46119769]
[1644651402379,0.1724,2913.4,2912.4,2.46119769]
[1644651402380,0.0008,2913.4,2912.4,2.46119769]
[1644651402581,0.0008,2913.4,2913.1,0.80805052]
[1644651402779,0.0008,2913.4,2912.4,6.7685]
[1644651402980,0.0008,2913.4,2912.3,0.495]
[1644651402981,0.0008,2913.4,2912.6,0.1716]
[1644651403242,0.0008,2913.4,2912.7,5.0]
[1644651403443,0.0008,2913.4,2912.5,2.06116525]
[1644651403444,0.0008,2913.4,2913.0,5.0]
[1644651403842,5.972,2913.6,2913.1,3.2]
[1644651404044,0.0062379,2913.2,2913.1,3.3716]
[1644651404243,0.0062379,2913.2,2913.1,9.10778579]
[1644651404642,3.79e-05,2913.2,2913.1,9.10778579]
[1644651404844,1.90895523,2914.3,2913.1,9.10778579]
[1644651404845,1.46957015,2914.3,2913.1,12.16867483]
[1644651405044,2.68739787,2914.9,2913.2,1.4608326]
[1644651405045,3.79e-05,2913.3,2913.2,1.4608326]
[1644651405242,3.79e-05,2913.3,2913.2,7.9558326]
[1644651405645,3.79e-05,2913.3,2913.2,11.53940001]
[1644651406043,0.1715,2914.8,2913.2,10.07856741]
[1644651406044,1.29797015,2914.3,2913.2,10.07856741]
[1644651406245,0.1715,2914.4,2913.2,14.03766741]
[1644651406544,1.73735523,2914.8,2913.2,14.03766741]
[1644651406545,0.1715,2914.5,2913.2,14.03766741]
[1644651406746,1.29797015,2914.6,2913.3,0.1715]
[1644651406983,1.29797015,2914.5,2913.4,0.495]
[1644651407182,1.29797015,2914.5,2913.5,0.1715]
[1644651407384,1.29797015,2914.7,2913.5,3.89254618]
[1644651407582,1.29797015,2914.7,2913.5,4.19254618]
[1644651408191,1.29797015,2914.8,2913.5,4.19254618]
[1644651408390,1.92901905,2914.8,2913.9,0.77747669]
[1644651408589,0.00849565,2914.2,2913.9,0.77747669]
[1644651409591,1.92901905,2914.8,2913.9,0.77747669]
[1644651409792,0.00849569,2914.2,2913.5,3.89254618]
[1644651409992,0.00849569,2914.2,2913.7,5.0]
[1644651410193,0.00849569,2914.2,2913.6,1.0]
[1644651410393,0.00849569,2914.2,2913.7,0.795]
[1644651410829,0.1715,2914.9,2914.4,0.74715601]
[1644651411126,0.1715,2914.9,2913.8,3.9635]
[1644651411330,0.1715,2914.9,2913.7,0.495]
[1644651411531,1.46947015,2914.9,2913.7,0.495]
[1644651411730,1.76947015,2914.9,2913.7,0.495]
[1644651412131,0.01733915,2914.6,2914.1,0.69922323]
[1644651412336,0.0084955,2914.4,2914.1,0.69922323]
[1644651412530,0.0084955,2914.4,2913.5,5.5635]
[1644651413232,0.1715,2914.5,2913.5,5.5635]
[1644651413435,0.1715,2914.5,2913.8,0.66420453]
[1644651413732,0.00849577,2914.1,2913.8,0.66420453]
[1644651414389,0.1715,2914.5,2913.8,0.66420453]
[1644651414582,0.00849577,2914.1,2913.8,0.66420453]
[1644651415683,0.1715,2914.5,2913.8,0.66420453]
[1644651415884,0.00849577,2914.1,2913.8,5.66420453]
[1644651416087,0.17382072,2915.0,2914.1,3.3]
[1644651416285,0.00232072,2915.0,2914.3,5.0]
[1644651416484,0.00232072,2915.0,2914.5,0.66919869]
[1644651416687,0.01898509,2914.8,2914.5,0.66919869]
[1644651416989,0.01898509,2914.8,2914.5,0.96919869]
[1644651417387,0.01898509,2914.8,2914.5,1.96919869]
[1644651417792,0.01898509,2914.8,2914.5,0.96919869]
[1644651418127,0.01898509,2914.8,2914.6,0.1715]
[1644651419729,0.01898509,2914.8,2914.6,1.4715]
[1644651420732,0.02748027,2914.8,2914.6,1.4715]
[1644651420932,0.02748027,2914.8,2914.6,0.1715]
[1644651421341,0.02748027,2914.8,2914.2,0.495]
[1644651421533,0.02748027,2914.8,2914.1,3.916]
[1644651421534,0.1715,2914.7,2914.1,3.916]
[1644651421732,0.1715,2914.7,2913.8,4.8781]
[1644651421979,0.1715,2914.7,2914.6,0.03017653]
[1644651422178,0.1715,2914.9,2914.6,0.03017653]
[1644651422381,0.00232072,2915.0,2914.6,0.03017653]
[1644651423184,0.0084951,2914.9,2914.6,0.03017653]
[1644651423382,0.1715,2914.8,2914.6,0.03017653]
[1644651424183,0.00232072,2915.0,2914.6,0.03017653]
[1644651424384,0.00849518,2914.8,2914.6,0.03017653]
[1644651425183,0.00232072,2915.0,2914.6,0.03017653]
[1644651425627,0.00849518,2914.8,2914.6,0.03017653]
[1644651426028,0.00849518,2914.8,2914.6,7.653e-05]
[1644651426232,0.00849518,2914.8,2914.0,4.0032]
[1644651426233,0.00936076,2914.5,2914.0,3.8317]
[1644651426529,0.1715,2914.4,2913.4,11.7546]
[1644651426725,0.1715,2914.4,2913.4,8.7376]
[1644651426927,0.1715,2914.4,2913.5,0.00759941]
[1644651426928,0.76792218,2914.2,2913.5,0.00759941]
[1644651427126,0.1715,2914.1,2913.5,0.00759941]
[1644651427328,0.6665,2914.1,2913.5,0.00759941]
[1644651427727,0.495,2914.1,2913.3,0.8336875]
[1644651427926,0.495,2914.1,2913.5,0.00759941]
[1644651428531,0.795,2914.1,2913.5,0.00759941]
[1644651428731,1.095,2914.1,2913.5,0.00759941]
[1644651428932,0.495,2914.1,2913.3,0.8336875]
[1644651429134,0.1716,2914.0,2913.5,0.00759941]
[1644651429582,0.1716,2914.1,2913.5,0.00759941]
[1644651430083,0.1716,2914.1,2913.3,0.8336875]
[1644651430384,0.795,2914.3,2913.5,0.00759941]
[1644651430385,0.18009501,2914.2,2913.5,0.00759941]
[1644651431183,0.495,2914.1,2913.3,0.8336875]
[1644651431397,1.0542597,2914.0,2913.3,0.8336875]
[1644651431588,1.3542597,2914.0,2913.5,0.00759941]
[1644651431889,1.3542597,2914.0,2913.6,0.0308545]
[1644651431890,5.27200816,2914.0,2913.6,0.0308545]
[1644651432290,2.35353,2913.9,2913.6,0.0308545]
[1644651432487,4.23443068,2913.8,2913.6,0.0308545]
[1644651432688,0.495,2913.7,2913.6,5.45e-05]
[1644651432889,5.42380815,2913.7,2913.6,5.45e-05]
[1644651433128,5.5863828,2913.7,2913.6,5.45e-05]
[1644651433329,5.42380815,2913.7,2913.6,5.45e-05]
[1644651433530,5.5863828,2913.7,2913.6,5.45e-05]
[1644651434533,7.9363828,2913.7,2913.5,0.00685401]
[1644651434731,4.62841484,2913.6,2913.5,0.00685401]
[1644651435030,0.85876,2913.4,2912.6,0.1716]
[1644651435230,4.5496164,2913.3,2912.6,0.1716]
[1644651435430,4.8496164,2913.3,2912.6,0.1716]
[1644651435631,0.78249315,2913.0,2912.6,0.1716]
[1644651435830,0.1716,2912.9,2912.6,0.1716]
[1644651436031,0.4716,2912.9,2912.6,0.1716]
[1644651436432,0.4716,2912.9,2912.7,0.0076161]
[1644651436887,1.33039,2912.9,2912.7,0.0076161]
[1644651437089,4.03991043,2912.8,2912.7,0.0076161]
[1644651437283,0.795,2912.8,2912.0,0.00286811]
[1644651437483,1.0,2912.7,2912.0,0.00286811]
[1644651437687,1.0,2912.7,2911.6,0.00286811]
[1644651437688,0.85889,2912.5,2911.6,0.00286811]
[1644651438089,0.3,2912.4,2911.7,0.78930904]
[1644651438289,0.795,2912.4,2911.7,0.78930904]
[1644651438490,0.795,2912.4,2911.8,0.00286811]
[1644651438991,1.795,2912.4,2911.8,0.00286811]
[1644651439192,1.795,2912.4,2911.7,0.00072102]
[1644651440194,1.795,2912.4,2911.7,0.00358913]
[1644651441635,1.795,2912.4,2911.7,0.00072102]
[1644651442034,3.54275636,2912.3,2911.7,0.00072102]
[1644651442237,0.1716,2912.2,2911.7,0.00072102]
[1644651442435,1.0,2912.2,2911.7,0.00072102]
[1644651442636,1.3,2912.2,2911.7,0.00072102]
[1644651442838,0.3,2912.2,2911.7,0.00072102]
[1644651443036,0.3,2912.3,2911.7,0.00072102]
[1644651443239,0.795,2912.4,2911.7,0.00072102]
[1644651443439,1.095,2912.4,2911.7,0.00072102]
[1644651443641,1.095,2912.4,2911.8,0.8901312]
[1644651443842,1.095,2912.4,2911.8,0.89299931]
[1644651444507,1.095,2912.4,2911.8,0.00286811]
[1644651444707,1.095,2912.4,2911.7,0.00072102]
[1644651445012,0.1716,2912.3,2911.7,0.00072102]
[1644651445207,0.1716,2912.3,2912.0,0.00761793]
[1644651445508,1.1716,2912.3,2912.0,0.00761793]
[1644651446208,4.08421336,2912.2,2912.0,0.00760015]
[1644651446408,4.89790373,2912.1,2912.0,0.00760015]
[1644651446708,5.39290373,2912.1,2912.0,0.00760015]
[1644651447011,5.41094479,2912.1,2912.0,7.209e-05]
[1644651447210,5.41094479,2912.1,2911.7,0.00072102]
[1644651447211,6.13769329,2912.1,2911.7,0.00072102]
[1644651447408,6.27012479,2912.1,2911.7,0.00072102]
[1644651447811,8.28842019,2912.1,2911.7,0.00072102]
[1644651448234,13.28842019,2912.1,2911.7,0.00072102]
[1644651448433,10.86613019,2912.1,2911.7,0.00072102]
[1644651448633,15.86613019,2912.1,2911.7,0.00072102]
[1644651448834,3.3,2912.0,2911.3,0.00286811]
[1644651449034,0.85931,2911.8,2911.3,0.00286811]
[1644651449236,2.5779066,2911.4,2910.4,0.25]
[1644651449438,0.88564869,2911.0,2910.4,0.25]
[1644651449636,3.0729066,2911.4,2910.5,0.00286811]
[1644651449935,3.0729066,2911.4,2910.8,0.00225804]
[1644651449936,2.5136,2911.4,2910.8,0.00225804]
[1644651450336,2.8136,2911.4,2910.8,0.00225804]
[1644651450536,0.67688762,2911.3,2910.8,0.00225804]
[1644651450738,1.53618762,2911.3,2910.8,0.00225804]
[1644651450935,2.53618762,2911.3,2910.5,0.00286811]
[1644651451137,2.53618762,2911.3,2910.9,0.00751366]
[1644651452083,2.53618762,2911.3,2910.5,0.03292726]
[1644651452084,2.53618762,2911.3,2910.5,0.00286811]
[1644651452284,2.53618762,2911.3,2911.0,0.00751353]
[1644651453188,2.53618762,2911.3,2910.5,0.03292675]
[1644651453189,1.53618762,2911.3,2910.5,0.00286811]
[1644651453388,2.53618762,2911.3,2910.5,0.00286811]
[1644651453590,2.53618762,2911.3,2911.0,0.0075134]
[1644651453789,3.0729231,2911.6,2911.0,0.0075134]
[1644651453790,1.495,2911.6,2911.0,0.0075134]
[1644651453987,1.0,2911.6,2911.0,0.0075134]
[1644651454188,0.3,2911.6,2911.0,0.0075134]
[1644651454387,0.3,2911.6,2910.5,0.00286811]
[1644651454589,1.3,2911.7,2910.5,0.00286811]
[1644651454789,1.0193142,2911.5,2911.2,0.00751302]
[1644651455192,1.3193142,2911.5,2911.2,0.00751302]
[1644651455626,1.3193142,2911.5,2910.5,0.00286811]
[1644651455929,1.3193142,2911.5,2911.2,0.00751289]
[1644651456127,1.2454,2911.8,2911.2,0.00751289]
[1644651456327,0.3,2912.0,2911.2,0.00751289]
[1644651456526,0.01859936,2911.3,2911.2,0.00751289]
[1644651456927,0.01859936,2911.3,2910.9,0.00286811]
[1644651457129,0.01859936,2911.3,2911.1,0.00751315]
[1644651457527,0.82482204,2912.0,2911.3,0.02466792]
[1644651457730,0.1716,2912.3,2911.3,0.02466792]
[1644651458038,0.1716,2912.5,2911.3,0.02466792]
[1644651458234,0.7716,2912.5,2911.3,0.02466792]
[1644651458435,0.7716,2912.5,2911.7,0.00751173]
[1644651458436,0.85891,2912.4,2911.7,0.00751173]
[1644651458635,0.1716,2912.3,2911.7,0.00751173]
[1644651458835,0.7716,2912.3,2911.7,0.00751173]
[1644651459235,0.7716,2912.3,2911.6,0.79529646]
[1644651459479,0.7716,2912.3,2911.9,0.00751121]
[1644651459879,0.4716,2912.3,2911.9,0.00751121]
[1644651460081,0.1716,2912.3,2911.9,0.00751121]
[1644651460287,1.0,2912.6,2911.9,0.00751121]
[1644651460288,0.1716,2912.6,2911.9,0.00751121]
[1644651460481,1.29459997,2912.8,2911.7,0.1716]
[1644651460679,0.1716,2912.9,2911.9,0.00751121]
[1644651460881,0.1716,2913.0,2911.9,0.00751121]
[1644651461081,0.77654467,2912.8,2911.9,0.00751121]
[1644651461481,0.1716,2913.0,2911.9,0.00751121]
[1644651461482,0.1716,2913.0,2912.1,0.85273181]
[1644651461682,0.1716,2913.1,2912.1,0.85273181]
[1644651461883,0.1716,2913.2,2912.1,0.85273181]
[1644651462082,0.00834023,2913.3,2912.1,0.85273181]
[1644651462282,0.1716,2913.2,2912.1,0.85273181]
[1644651463130,1.1164783,2913.2,2912.1,0.85273181]
[1644651463934,0.1716,2913.2,2912.1,0.85273181]
[1644651464735,0.1716,2913.2,2912.1,1.45273181]
[1644651465539,0.17961097,2913.3,2912.1,1.45273181]
[1644651465735,0.17961097,2913.3,2912.6,0.73342119]
[1644651466336,0.17961097,2913.3,2912.0,0.1716]
[1644651466536,0.04038226,2913.2,2912.3,0.01335901]
[1644651466737,0.04038226,2913.2,2912.4,0.1716]
[1644651467582,0.04038226,2913.2,2912.5,0.63362789]
[1644651470091,0.04038226,2913.2,2912.5,0.93362789]
[1644651470290,0.04038226,2913.2,2912.6,0.1716]
[1644651471735,0.87021632,2913.1,2912.6,0.1716]
[1644651471935,0.04038226,2913.2,2912.6,0.1716]
[1644651473342,0.04038226,2913.2,2912.7,0.70924054]
[1644651473543,0.04038226,2913.2,2912.8,0.1716]
[1644651473938,0.04038226,2913.2,2912.8,1.0899]
[1644651474384,0.04038226,2913.2,2912.8,0.9183]
[1644651476379,0.04038226,2913.2,2912.8,0.93157371]
[1644651476777,0.04038226,2913.2,2912.8,0.01327371]
[1644651479638,0.21198226,2913.2,2912.8,0.01327371]
[1644651479837,0.04038226,2913.2,2912.8,0.01327371]
[1644651480236,0.1716,2913.1,2912.8,0.01327371]
[1644651480436,0.68213517,2913.0,2912.8,0.01233116]
[1644651480638,0.1716,2912.9,2912.8,0.01233116]
[1644651483987,0.1716,2912.9,2911.9,0.00613845]
[1644651483988,0.00415066,2912.7,2911.9,0.00613845]
[1644651484187,0.1716,2912.6,2911.9,0.00613845]
[1644651484591,0.9666,2912.6,2911.4,3.28326811]
[1644651484889,0.89064501,2912.3,2911.9,0.00613845]
[1644651485187,1.49064501,2912.3,2911.9,0.00613845]
[1644651485632,1.49064501,2912.3,2911.4,0.00286811]
[1644651485633,0.6666,2912.2,2911.4,0.00286811]
[1644651486030,0.6666,2912.2,2911.9,0.00613845]
[1644651486832,1.5255952,2912.2,2911.9,0.00613845]
[1644651487133,0.6666,2912.2,2911.9,0.00613834]
[1644651487432,1.6666,2912.2,2911.9,0.00613834]
[1644651487833,2.5256158,2912.2,2911.9,0.00613834]
[1644651488236,2.5256158,2912.2,2911.4,0.00286811]
[1644651488237,0.70654054,2911.6,2911.4,0.00286811]
[1644651488437,1.00654054,2911.6,2911.3,0.02466792]
[1644651488639,1.30654054,2911.6,2911.3,0.02466792]
[1644651488837,0.6,2911.6,2911.3,0.02466792]
[1644651489239,0.495,2911.8,2911.3,0.02466792]
[1644651489683,0.795,2911.8,2911.3,0.03080742]
[1644651489884,1.17340652,2911.7,2911.3,0.03080742]
[1644651490484,1.17340652,2911.7,2911.3,0.02466792]
[1644651490685,1.17340652,2911.7,2911.4,0.00615477]
[1644651491688,1.17340652,2911.7,2911.3,0.02466792]
[1644651491886,1.34500652,2911.7,2911.3,0.02466792]
[1644651492087,1.34500652,2911.7,2911.4,0.00615466]
[1644651492986,1.34500652,2911.7,2911.3,0.02466792]
[1644651493235,1.34500652,2911.7,2911.4,0.00615466]
[1644651493436,2.34500652,2911.7,2911.4,0.00615466]
[1644651493834,2.29500652,2911.7,2911.4,0.00615466]
[1644651494236,2.29500652,2911.7,2911.3,0.02466792]
[1644651494434,2.29500652,2911.7,2911.4,0.00613586]
[1644651494634,1.4216,2911.7,2911.4,0.00613586]
[1644651494834,0.4216,2911.7,2911.4,0.00613586]
[1644651495035,1.4216,2911.7,2911.4,0.00613586]
[1644651495234,0.4216,2911.7,2911.3,0.02466792]
[1644651495451,0.9166,2911.7,2911.3,0.02466792]
[1644651495634,0.9166,2911.7,2911.4,0.00613586]
[1644651495836,0.8666,2911.7,2911.4,0.00613586]
[1644651496536,0.8666,2911.7,2911.3,0.02466792]
[1644651496738,0.01755656,2911.6,2911.4,0.00613586]
[1644651496985,0.1716,2911.5,2911.4,0.00613586]
[1644651497186,0.01755656,2911.6,2911.4,0.00613586]
[1644651497685,0.01755656,2911.6,2911.3,0.02466792]
[1644651497886,0.01755656,2911.6,2911.4,0.00614019]
[1644651498291,0.68086994,2911.7,2911.4,0.00614019]
[1644651498891,0.68086994,2911.7,2911.3,0.02466792]
[1644651499092,0.68086994,2911.7,2911.4,0.00614009]
[1644651500193,0.68086994,2911.7,2911.3,0.02466792]
[1644651500396,0.1716,2911.6,2911.4,0.00614009]
[1644651500631,0.495,2911.5,2911.4,0.00614009]
[1644651500832,0.6166,2911.5,2911.4,0.00614009]
[1644651501234,1.31692449,2911.5,2911.4,0.00614009]
[1644651501434,1.65436539,2911.5,2911.3,0.02466792]
[1644651501632,0.1716,2911.4,2911.3,0.03080727]
[1644651501835,0.6666,2911.4,2911.3,0.03080727]
[1644651502133,0.9666,2911.4,2911.3,0.03080727]
[1644651502537,0.9666,2911.4,2911.3,0.02466792]
[1644651502737,0.9666,2911.4,2911.3,6.792e-05]
[1644651503439,0.9166,2911.4,2911.3,6.792e-05]
[1644651503640,1.74318471,2911.4,2911.3,6.792e-05]
[1644651504041,0.9166,2911.4,2911.3,6.792e-05]
[1644651504890,1.9166,2911.4,2911.3,6.792e-05]
[1644651505690,2.57096033,2911.4,2911.3,6.792e-05]
[1644651505892,1.57096033,2911.4,2911.3,6.792e-05]
[1644651506092,2.57096033,2911.4,2911.3,6.792e-05]
[1644651506293,7.00479997,2911.4,2911.3,6.792e-05]
[1644651506493,14.18796947,2911.4,2911.3,6.792e-05]
[1644651506691,9.18796947,2911.4,2911.3,6.792e-05]
[1644651506892,8.36088832,2911.4,2911.3,6.792e-05]
[1644651507894,8.36088832,2911.4,2910.6,0.00286811]
[1644651507895,0.86439164,2910.8,2910.6,0.00286811]
[1644651508130,8.36088832,2911.4,2910.1,0.00286811]
[1644651508131,0.445,2910.7,2910.1,0.00286811]
[1644651508334,0.495,2910.6,2910.1,0.00286811]
[1644651508734,0.795,2910.6,2910.1,0.00286811]
[1644651509537,0.495,2910.6,2910.1,0.00286811]
[1644651510237,0.445,2910.6,2910.2,0.00750841]
[1644651510641,0.445,2910.6,2910.4,0.74242612]
[1644651511241,0.445,2910.6,2910.4,0.74993414]
[1644651512087,0.445,2910.6,2910.4,0.74242612]
[1644651512488,0.395,2910.6,2910.4,0.74993414]
[1644651513397,0.395,2910.6,2910.4,0.74242612]
[1644651514800,0.395,2910.6,2910.4,0.74991651]
[1644651514997,0.85934,2910.9,2910.4,0.74991651]
[1644651515195,1.15934,2910.9,2910.4,0.75278462]
[1644651515396,0.85934,2910.9,2910.4,0.75278462]
[1644651515841,1.89027,2911.2,2910.4,0.74529423]
[1644651515842,0.1716,2911.2,2910.4,0.74529423]
[1644651516040,0.1716,2911.0,2910.5,0.00749]
[1644651516238,2.52304,2911.3,2910.5,0.00749]
[1644651516239,0.1716,2911.2,2910.5,0.00749]
[1644651516941,0.01764272,2910.6,2910.5,0.00749]
[1644651517739,0.82697272,2910.9,2910.5,0.00749]
[1644651518140,0.82697272,2910.9,2910.7,0.00748949]
[1644651518746,0.82697272,2910.9,2910.6,0.00748987]
[1644651519391,0.82697272,2910.9,2910.4,0.76920403]
[1644651519584,0.82697272,2910.9,2910.6,0.00585366]
[1644651519585,0.4716,2910.8,2910.6,0.00585366]
[1644651519786,0.4216,2910.8,2910.6,0.00585366]
[1644651520186,0.1716,2910.8,2910.6,0.00585366]
[1644651520688,0.1716,2910.8,2910.4,0.76920403]
[1644651520988,0.1716,2911.0,2910.6,0.00585376]
[1644651521785,0.1716,2911.0,2910.5,0.00286811]
[1644651521786,0.85933,2910.9,2910.5,0.00286811]
[1644651521986,0.1716,2910.8,2910.7,0.00585356]
[1644651522390,0.1216,2910.8,2910.7,0.00585356]
[1644651522988,0.1216,2910.8,2910.5,0.0028464]
[1644651523237,0.1216,2910.8,2910.6,0.00585366]
[1644651523439,0.12076003,2910.8,2910.6,0.00585366]
[1644651523941,0.495,2910.7,2910.6,0.00585366]
[1644651524137,0.495,2910.7,2909.8,0.0028464]
[1644651524138,1.7191,2910.6,2909.8,0.0028464]
[1644651524338,2.2141285,2910.5,2909.8,1.46523938]
[1644651524538,0.6,2910.4,2910.1,0.0246948]
[1644651524741,1.095,2910.4,2910.1,0.0246948]
[1644651524939,1.045,2910.4,2910.1,0.0246948]
[1644651525438,1.045,2910.4,2909.9,0.79029563]
[1644651525638,0.85954,2910.3,2910.1,0.00617373]
[1644651526639,0.85954,2910.3,2909.6,0.0028464]
[1644651526888,0.85954,2910.3,2910.1,0.00617383]
[1644651527086,0.795,2910.4,2910.1,0.00617383]
[1644651527285,1.095,2910.4,2910.1,0.00617383]
[1644651527889,1.095,2910.4,2909.6,0.02754544]
[1644651527890,2.095,2910.4,2909.6,0.0028464]
[1644651528087,0.1718,2910.3,2910.1,0.00610933]
[1644651528290,0.6668,2910.3,2910.1,0.00610933]
[1644651528491,1.52629,2910.3,2910.1,0.00610933]
[1644651528893,2.52629,2910.3,2910.1,0.00610933]
[1644651529093,2.52629,2910.3,2909.5,0.0028464]
[1644651529094,3.59006024,2910.2,2909.5,0.0028464]
[1644651529294,3.59006024,2910.2,2910.1,0.00610944]
[1644651529295,3.89006024,2910.2,2910.1,0.00610944]
[1644651529593,4.38506024,2910.2,2910.1,0.00610944]
[1644651530196,4.38506024,2910.2,2909.3,0.71730527]
[1644651530398,0.3,2910.1,2910.0,0.00610954]
[1644651530636,0.9668,2910.1,2910.0,0.00610954]
[1644651530838,1.2668,2910.1,2910.0,0.00610954]
[1644651531539,1.2668,2910.1,2909.1,0.0028464]
[1644651531738,1.2668,2910.1,2909.9,0.00611998]
[1644651531940,0.6668,2910.1,2909.9,0.00611998]
[1644651532540,0.495,2910.1,2909.7,0.0028464]
[1644651532739,0.495,2910.1,2909.9,0.00612008]
[1644651533344,1.35466,2910.1,2909.9,0.00612008]
[1644651533743,0.3,2910.0,2909.9,0.00612008]
[1644651534044,0.3,2910.0,2909.7,0.0028464]
[1644651534045,0.85965,2909.9,2909.7,0.0028464]
[1644651534243,0.85965,2909.9,2909.3,1.46542866]
[1644651534496,0.85965,2909.9,2909.4,1.46258226]
[1644651534695,0.80965,2909.9,2909.5,1.46258226]
[1644651534898,0.80965,2909.9,2909.6,2.34396689]
[1644651535097,1.10965,2909.9,2909.6,0.88138463]
[1644651535296,1.10965,2909.9,2909.6,0.88889229]
[1644651536102,1.10965,2909.9,2908.9,3.3313964]
[1644651536302,2.28145,2909.9,2909.0,1.4625968]
[1644651536604,2.28145,2909.9,2909.6,0.00750754]
[1644651537205,2.23145,2909.9,2909.6,0.00750754]
[1644651537404,2.23145,2909.9,2909.5,0.0028464]
[1644651537604,2.23145,2909.9,2909.6,0.00750754]
[1644651538637,2.23145,2909.9,2909.0,0.0028464]
[1644651538840,2.23145,2909.9,2909.6,0.00750754]
[1644651538841,3.96887193,2909.8,2909.6,0.00750754]
[1644651539141,0.9668,2909.8,2909.6,0.00750754]
[1644651539438,0.3,2909.7,2909.6,0.00750754]
[1644651539837,0.7218,2909.8,2909.4,0.82158395]
[1644651540038,0.7218,2909.8,2909.5,0.0022603]
[1644651540239,0.4218,2909.8,2909.5,0.0022603]
[1644651540437,0.1718,2909.8,2909.5,0.0022603]
[1644651540642,0.02717481,2910.0,2909.5,0.0022603]
[1644651541039,0.02717481,2910.0,2909.5,1.46544423]
[1644651541238,0.02717481,2910.0,2909.6,1.46485805]
[1644651541897,0.02168147,2909.8,2909.7,0.03402051]
[1644651542186,0.1218,2910.7,2910.5,0.64050492]
[1644651542587,1.72133953,2910.9,2910.5,0.64050492]
[1644651542588,0.1716,2910.8,2910.5,0.64050492]
[1644651542787,2.8522409,2911.4,2910.5,0.64050492]
[1644651542788,0.1716,2911.1,2910.5,0.64050492]
[1644651542987,0.86196953,2911.5,2910.6,1.4621457]
[1644651543195,0.1716,2911.3,2910.6,1.4621457]
[1644651543392,0.86196953,2911.5,2910.5,0.64050492]
[1644651543593,0.1716,2911.2,2910.5,0.64050492]
[1644651543792,0.1716,2911.4,2910.9,0.00750418]
[1644651543990,0.86196953,2911.6,2910.9,0.00750418]
[1644651544190,4.18597015,2911.8,2910.9,0.00750418]
[1644651544191,1.03356953,2911.5,2910.9,0.00750418]
[1644651544395,0.86196953,2911.5,2910.9,0.00750418]
[1644651544591,0.86196953,2911.5,2910.5,0.64050492]
[1644651544592,0.81196953,2911.5,2910.5,0.64050492]
[1644651544792,0.1716,2911.5,2910.6,1.46213445]
[1644651544994,0.1716,2911.7,2911.1,0.0075038]
[1644651545194,0.4716,2911.7,2911.1,0.0075038]
[1644651545841,0.4716,2911.7,2911.4,0.82815377]
[1644651545842,1.76957015,2911.7,2911.4,0.82815377]
[1644651546039,1.59797015,2911.6,2911.4,0.82815377]
[1644651546240,1.59797015,2911.6,2911.3,0.00750328]
[1644651546241,0.1716,2911.5,2911.3,0.00750328]
[1644651546840,0.4716,2911.7,2911.3,0.00750328]
[1644651547040,0.4716,2911.7,2910.4,0.1716]
[1644651547238,1.29797015,2911.8,2911.2,0.86083325]
[1644651547239,1.46957015,2911.8,2911.2,0.86083325]
[1644651547440,1.1716,2911.9,2911.3,0.00750328]
[1644651547640,1.4716,2911.9,2911.3,0.00750328]
[1644651547841,2.76957015,2911.9,2911.3,0.00750328]
[1644651548245,2.76957015,2911.9,2911.2,0.86083325]
[1644651548246,1.7716,2911.9,2911.2,0.86083325]
[1644651548448,3.06957015,2911.9,2910.7,0.1716]
[1644651548647,3.06957015,2911.9,2911.5,0.00750277]
[1644651548844,1.7716,2911.9,2911.5,0.00750277]
[1644651549250,3.54161005,2911.8,2911.5,0.00750277]
[1644651549487,0.1716,2911.7,2910.7,0.1716]
[1644651549694,0.85915,2911.6,2910.7,0.99707824]
[1644651549986,0.85915,2911.6,2911.1,0.03001453]
[1644651550386,2.45915,2911.9,2911.1,0.03001453]
[1644651550387,2.89797015,2911.9,2911.1,0.03001453]
[1644651550590,2.89797015,2911.9,2910.7,0.99707824]
[1644651551092,2.89797015,2911.9,2911.2,0.00750341]
[1644651551689,0.02186543,2911.8,2911.4,0.03485585]
[1644651552092,0.02186543,2911.8,2911.4,0.04235874]
[1644651553136,0.02186543,2911.8,2911.4,0.03485585]
[1644651553137,1.59797015,2911.6,2911.4,0.03485585]
[1644651553341,1.89797015,2911.6,2911.5,0.00750277]
[1644651553642,2.06957015,2911.6,2911.5,0.00486383]
[1644651553839,0.7716,2911.6,2911.5,0.00486383]
[1644651554041,2.06957015,2911.6,2911.5,0.00486383]
[1644651554242,2.06957015,2911.6,2911.4,0.03485585]
[1644651554442,0.1716,2911.5,2911.4,0.03485585]
[1644651554642,3.76088571,2911.5,2911.4,5.585e-05]
[1644651554844,3.76088571,2911.5,2910.2,0.41450225]
[1644651554845,0.85931,2911.3,2910.2,0.41450225]
[1644651555042,0.87234463,2911.1,2910.0,4.0127]
[1644651555242,1.17234463,2911.1,2910.0,4.0127]
[1644651555542,1.04394463,2911.2,2910.2,1.4622738]
[1644651555742,1.64394463,2911.2,2910.3,1.4622738]
[1644651555941,1.64394463,2911.2,2910.0,4.0127]
[1644651556146,0.7716,2911.2,2910.1,1.46224224]
[1644651556343,0.4716,2911.2,2910.1,1.46224224]
[1644651556743,1.1756573,2911.1,2910.2,0.78298978]
[1644651556988,0.8756573,2911.1,2910.3,1.46224224]
[1644651557190,1.1756573,2911.1,2910.3,1.46224224]
[1644651557487,0.4716,2911.2,2910.3,1.46224224]
[1644651557688,0.1716,2911.2,2910.3,1.46224224]
[1644651558089,0.1716,2911.2,2910.6,0.00749836]
[1644651558297,1.70260595,2911.2,2910.6,0.00749836]
[1644651558494,0.83026132,2911.2,2910.6,0.00749836]
[1644651559095,0.83026132,2911.2,2910.2,0.78298978]
[1644651559295,0.65866132,2911.2,2910.8,0.00749797]
[1644651559694,4.9072112,2911.1,2910.8,0.00749797]
[1644651559895,0.1716,2911.0,2910.8,0.00749797]
[1644651560094,1.53894463,2911.0,2910.8,0.00749797]
[1644651560294,0.8594,2910.9,2910.0,3.8411]
[1644651560495,3.5834352,2910.8,2910.0,3.8411]
[1644651560740,0.1716,2910.7,2910.3,0.02999638]
[1644651560942,0.495,2910.6,2910.3,0.02999638]
[1644651561141,3.8018283,2910.5,2910.3,0.02999638]
[1644651561442,3.8018283,2910.5,2909.8,0.02782051]
[1644651561443,0.495,2910.4,2909.8,0.02782051]
[1644651561639,0.9668,2910.4,2909.8,0.02782051]
[1644651561841,0.9668,2910.4,2910.3,0.00749926]